[Event "FIDE U16 Olympiad_boards_1-80"]
[Site "Eindhoven, Netherlands"]
[Date "2023.08.13"]
[Round "1.1"]
[White "Fu, Yihe"]
[Black "Ansat, Aldiyar"]
[Result "1/2-1/2"]
[TimeControl "2700+10"]
[WhiteElo "2097"]
[BlackElo "2370"]

1. e4 {[%clk 00:45:18]} c5 {[%clk 00:45:11]} {[%emt 00:00:10]} 2. Nf3 {[%clk
00:45:27]} {[%emt 00:00:02]} Nc6 {[%clk 00:45:09]} {[%emt 00:00:12]} 3. d4
{[%clk 00:45:35]} {[%emt 00:00:01]} cxd4 {[%clk 00:45:16]} {[%emt 00:00:04]} 4.
Nxd4 {[%clk 00:45:44]} {[%emt 00:00:01]} Nf6 {[%clk 00:43:52]} {[%emt
00:01:34]} 5. Nc3 {[%clk 00:45:50]} {[%emt 00:00:02]} e5 {[%clk 00:43:05]}
{[%emt 00:00:58]} 6. Ndb5 {[%clk 00:45:58]} {[%emt 00:00:02]} d6 {[%clk
00:43:14]} {[%emt 00:00:02]} 7. Nd5 {[%clk 00:46:07]} {[%emt 00:00:01]} Nxd5
{[%clk 00:43:17]} {[%emt 00:00:07]} 8. exd5 {[%clk 00:46:15]} {[%emt 00:00:02]}
Nb8 {[%clk 00:43:12]} {[%emt 00:00:15]} 9. a4 {[%clk 00:46:23]} {[%emt
00:00:01]} Be7 {[%clk 00:41:39]} {[%emt 00:01:43]} 10. Be2 {[%clk 00:45:04]}
{[%emt 00:01:29]} O-O {[%clk 00:40:38]} {[%emt 00:01:12]} 11. O-O {[%clk
00:44:59]} {[%emt 00:00:14]} a6 {[%clk 00:35:34]} {[%emt 00:05:14]} 12. Na3
{[%clk 00:45:07]} {[%emt 00:00:01]} Nd7 {[%clk 00:35:42]} {[%emt 00:00:02]} 13.
Bd2 {[%clk 00:44:25]} {[%emt 00:00:52]} f5 {[%clk 00:29:35]} {[%emt 00:06:18]}
14. Nc4 {[%clk 00:41:50]} {[%emt 00:02:44]} Rf6 {[%clk 00:24:03]} {[%emt
00:05:43]} 15. f4 {[%clk 00:39:31]} {[%emt 00:02:29]} e4 {[%clk 00:24:04]}
{[%emt 00:00:09]} 16. a5 {[%clk 00:35:08]} {[%emt 00:04:32]} Rh6 {[%clk
00:22:12]} {[%emt 00:02:02]} 17. Bb4 {[%clk 00:34:01]} {[%emt 00:01:16]} Nf8
{[%clk 00:19:56]} {[%emt 00:02:27]} 18. Ra3 {[%clk 00:33:03]} {[%emt 00:01:08]}
Bd7 {[%clk 00:17:42]} {[%emt 00:02:24]} 19. Nb6 {[%clk 00:30:54]} {[%emt
00:02:19]} Rb8 {[%clk 00:17:51]} {[%emt 00:00:02]} 20. Rg3 {[%clk 00:29:23]}
{[%emt 00:01:40]} Be8 {[%clk 00:15:59]} {[%emt 00:02:04]} 21. c4 {[%clk
00:24:42]} {[%emt 00:04:50]} Nd7 {[%clk 00:11:34]} {[%emt 00:04:35]} 22. Nxd7
{[%clk 00:22:57]} {[%emt 00:01:54]} Bxd7 {[%clk 00:10:01]} {[%emt 00:01:44]} 23.
Bc3 {[%clk 00:17:43]} {[%emt 00:05:24]} Bf6 {[%clk 00:10:06]} {[%emt 00:00:06]}
24. Qd2 {[%clk 00:15:35]} {[%emt 00:02:17]} b5 {[%clk 00:09:37]} {[%emt
00:00:38]} 25. b4 {[%clk 00:14:51]} {[%emt 00:00:54]} bxc4 {[%clk 00:07:52]}
{[%emt 00:01:56]} 26. Bxc4 {[%clk 00:14:22]} {[%emt 00:00:40]} Qc8 {[%clk
00:07:49]} {[%emt 00:00:13]} 27. Bxf6 {[%clk 00:12:17]} {[%emt 00:02:14]} Rxf6
{[%clk 00:07:57]} {[%emt 00:00:02]} 28. Rc1 {[%clk 00:12:26]} Qb7 {[%clk
00:07:46]} {[%emt 00:00:21]} 29. Qd4 {[%clk 00:10:58]} {[%emt 00:01:38]} Rg6
{[%clk 00:06:40]} {[%emt 00:01:16]} 30. Rb3 {[%clk 00:08:07]} {[%emt 00:03:01]}
Bb5 {[%clk 00:04:28]} {[%emt 00:02:23]} 31. Bxb5 {[%clk 00:08:12]} {[%emt
00:00:05]} Qxb5 {[%clk 00:04:37]} 32. Rb2 {[%clk 00:08:21]} h5 {[%clk
00:04:01]} {[%emt 00:00:46]} 33. h3 {[%clk 00:08:03]} {[%emt 00:00:27]} Rg3
{[%clk 00:03:43]} {[%emt 00:00:28]} 34. Rc7 {[%clk 00:07:12]} {[%emt 00:01:01]}
Re8 {[%clk 00:02:57]} {[%emt 00:00:56]} 35. Qd1 {[%clk 00:05:07]} {[%emt
00:02:15]} e3 {[%clk 00:00:38]} {[%emt 00:02:30]} 36. Qxh5 {[%clk 00:05:15]}
{[%emt 00:00:02]} e2 {[%clk 00:00:29]} {[%emt 00:00:19]} 37. Qf7+ {[%clk
00:04:48]} {[%emt 00:00:36]} Kh8 {[%clk 00:00:38]} {[%emt 00:00:03]} 38. Qh5+
{[%clk 00:04:03]} {[%emt 00:00:54]} Kg8 {[%clk 00:00:47]} {[%emt 00:00:01]} 39.
Qf7+ {[%clk 00:03:55]} {[%emt 00:00:18]} Kh8 {[%clk 00:00:56]} 40. Qh5+ {[%clk
00:04:04]} Kg8 {[%clk 00:01:05]} {[%emt 00:00:01]} 1/2-1/2

[Event "FIDE U16 Olympiad_boards_1-80"]
[Site "Eindhoven, Netherlands"]
[Date "2023.08.13"]
[Round "1.2"]
[White "Sapenov, Daniyal"]
[Black "Teh, Rui Gen"]
[Result "1/2-1/2"]
[TimeControl "2700+10"]
[WhiteElo "2268"]
[BlackElo "1724"]

1. e4 {[%clk 00:45:13]} {[%emt 00:00:05]} c5 {[%clk 00:45:14]} {[%emt
00:00:06]} 2. Nf3 {[%clk 00:45:17]} {[%emt 00:00:07]} g6 {[%clk 00:45:18]}
{[%emt 00:00:06]} 3. d4 {[%clk 00:44:16]} {[%emt 00:01:10]} cxd4 {[%clk
00:45:22]} {[%emt 00:00:05]} 4. Nxd4 {[%clk 00:44:23]} {[%emt 00:00:03]} Nf6
{[%clk 00:44:53]} {[%emt 00:00:39]} 5. Nc3 {[%clk 00:43:39]} {[%emt 00:00:55]}
d6 {[%clk 00:43:24]} {[%emt 00:01:39]} 6. Be2 {[%clk 00:41:29]} {[%emt
00:02:20]} Bg7 {[%clk 00:42:11]} {[%emt 00:01:23]} 7. O-O {[%clk 00:41:35]}
{[%emt 00:00:05]} Nc6 {[%clk 00:42:08]} {[%emt 00:00:11]} 8. Nb3 {[%clk
00:39:39]} {[%emt 00:02:07]} O-O {[%clk 00:41:14]} {[%emt 00:01:05]} 9. Re1
{[%clk 00:38:28]} {[%emt 00:01:21]} Be6 {[%clk 00:38:39]} {[%emt 00:02:45]} 10.
Bf1 {[%clk 00:38:09]} {[%emt 00:00:29]} Rc8 {[%clk 00:33:42]} {[%emt 00:05:07]}
11. h3 {[%clk 00:33:51]} {[%emt 00:04:28]} Na5 {[%clk 00:27:45]} {[%emt
00:06:07]} 12. Nd5 {[%clk 00:28:14]} {[%emt 00:05:47]} Nc4 {[%clk 00:26:18]}
{[%emt 00:01:37]} 13. Nxf6+ {[%clk 00:23:24]} {[%emt 00:05:00]} Bxf6 {[%clk
00:26:20]} {[%emt 00:00:08]} 14. c3 {[%clk 00:21:32]} {[%emt 00:02:02]} Qb6
{[%clk 00:21:38]} {[%emt 00:04:53]} 15. Rb1 {[%clk 00:19:59]} {[%emt 00:01:43]}
Na5 {[%clk 00:17:47]} {[%emt 00:04:01]} 16. Be3 {[%clk 00:15:50]} {[%emt
00:04:19]} Qc7 {[%clk 00:17:36]} {[%emt 00:00:21]} 17. Nxa5 {[%clk 00:13:42]}
{[%emt 00:02:18]} Qxa5 {[%clk 00:17:44]} {[%emt 00:00:01]} 18. a3 {[%clk
00:13:51]} {[%emt 00:00:01]} d5 {[%clk 00:09:42]} {[%emt 00:08:12]} 19. exd5
{[%clk 00:13:21]} {[%emt 00:00:40]} Bxd5 {[%clk 00:09:50]} {[%emt 00:00:02]} 20.
Bd4 {[%clk 00:11:46]} {[%emt 00:01:45]} Bxd4 {[%clk 00:06:48]} {[%emt
00:03:12]} 21. Qxd4 {[%clk 00:11:50]} {[%emt 00:00:06]} e6 {[%clk 00:06:57]}
{[%emt 00:00:01]} 22. Re5 {[%clk 00:08:57]} {[%emt 00:03:03]} Qc7 {[%clk
00:06:16]} {[%emt 00:00:52]} 23. Rbe1 {[%clk 00:09:00]} {[%emt 00:00:07]} a6
{[%clk 00:05:25]} {[%emt 00:01:00]} 24. h4 {[%clk 00:08:01]} {[%emt 00:01:10]}
Rfd8 {[%clk 00:05:11]} {[%emt 00:00:24]} 25. Qf4 {[%clk 00:07:56]} {[%emt
00:00:14]} Bc4 {[%clk 00:04:04]} {[%emt 00:01:16]} 26. h5 {[%clk 00:06:39]}
{[%emt 00:01:28]} Bxf1 {[%clk 00:04:01]} {[%emt 00:00:14]} 27. Rxf1 {[%clk
00:06:48]} {[%emt 00:00:01]} Rd5 {[%clk 00:03:22]} {[%emt 00:00:49]} 28. Rfe1
{[%clk 00:06:54]} {[%emt 00:00:04]} Rcd8 {[%clk 00:02:30]} {[%emt 00:01:02]} 29.
Rxd5 {[%clk 00:06:09]} {[%emt 00:00:55]} Qxf4 {[%clk 00:02:39]} {[%emt
00:00:01]} 30. Rxd8+ {[%clk 00:06:17]} {[%emt 00:00:01]} Kg7 {[%clk 00:02:48]}
31. hxg6 {[%clk 00:06:18]} {[%emt 00:00:09]} hxg6 {[%clk 00:02:56]} {[%emt
00:00:02]} 32. Rd4 {[%clk 00:06:07]} {[%emt 00:00:22]} Qf5 {[%clk 00:03:01]}
{[%emt 00:00:06]} 33. g3 {[%clk 00:05:59]} {[%emt 00:00:17]} a5 {[%clk
00:02:36]} {[%emt 00:00:34]} 34. Red1 {[%clk 00:05:43]} {[%emt 00:00:26]} g5
{[%clk 00:01:53]} {[%emt 00:00:54]} 35. R1d2 {[%clk 00:04:58]} {[%emt
00:00:54]} Kg6 {[%clk 00:01:57]} {[%emt 00:00:06]} 36. Kg2 {[%clk 00:04:27]}
{[%emt 00:00:42]} b5 {[%clk 00:01:48]} {[%emt 00:00:19]} 37. Re2 {[%clk
00:04:03]} {[%emt 00:00:33]} Qc5 {[%clk 00:01:35]} {[%emt 00:00:23]} 38. Kg1
{[%clk 00:03:50]} {[%emt 00:00:24]} Qf5 {[%clk 00:01:12]} {[%emt 00:00:33]} 39.
Rde4 {[%clk 00:03:45]} {[%emt 00:00:14]} Qd5 {[%clk 00:00:57]} {[%emt
00:00:25]} 40. Rd4 {[%emt 00:01:00]} Qf5 {[%clk 00:01:00]} 41. Red2 {[%clk
00:02:55]} {[%emt 00:00:16]} Kg7 {[%clk 00:00:46]} {[%emt 00:00:24]} 42. Kg2
{[%clk 00:02:35]} {[%emt 00:00:30]} Kg6 {[%clk 00:00:53]} {[%emt 00:00:03]} 43.
Rd7 {[%clk 00:02:26]} {[%emt 00:00:19]} Qc5 {[%clk 00:00:51]} {[%emt 00:00:12]}
44. Kg1 {[%clk 00:02:15]} {[%emt 00:00:21]} Qe5 {[%clk 00:01:00]} {[%emt
00:00:01]} 45. Kh2 {[%clk 00:02:07]} {[%emt 00:00:18]} Qh8+ {[%clk 00:01:07]}
{[%emt 00:00:03]} 46. Kg2 {[%clk 00:02:15]} {[%emt 00:00:02]} Qe5 {[%clk
00:01:16]} {[%emt 00:00:01]} 47. R7d4 {[%clk 00:01:27]} {[%emt 00:00:58]} Qc5
{[%clk 00:01:24]} {[%emt 00:00:02]} 48. R2d3 {[%clk 00:01:20]} {[%emt
00:00:17]} Qc6+ {[%clk 00:00:53]} {[%emt 00:00:41]} 49. Kg1 {[%clk 00:01:26]}
{[%emt 00:00:04]} Qc5 {[%clk 00:00:56]} {[%emt 00:00:07]} 50. b4 {[%clk
00:01:18]} {[%emt 00:00:18]} axb4 {[%clk 00:01:05]} {[%emt 00:00:01]} 51. axb4
{[%clk 00:01:23]} {[%emt 00:00:05]} Qf5 {[%clk 00:01:00]} {[%emt 00:00:15]} 52.
Re3 {[%clk 00:01:20]} {[%emt 00:00:13]} Kg7 {[%clk 00:01:01]} {[%emt 00:00:09]}
53. Kg2 {[%clk 00:01:18]} {[%emt 00:00:12]} Kg6 {[%clk 00:00:58]} {[%emt
00:00:13]} 54. Rd7 {[%clk 00:00:56]} {[%emt 00:00:32]} Qg4 {[%clk 00:00:49]}
{[%emt 00:00:20]} 55. Rd4 {[%clk 00:00:52]} {[%emt 00:00:13]} Qf5 {[%clk
00:00:58]} {[%emt 00:00:02]} 56. Rd2 {[%clk 00:00:58]} {[%emt 00:00:04]} Qg4
{[%clk 00:01:00]} {[%emt 00:00:08]} 57. Kg1 {[%clk 00:00:54]} {[%emt 00:00:14]}
Qf5 {[%clk 00:01:06]} {[%emt 00:00:03]} 58. Rdd3 {[%clk 00:00:59]} {[%emt
00:00:06]} Qg4 {[%clk 00:01:11]} {[%emt 00:00:02]} 59. Rd4 {[%clk 00:00:50]}
{[%emt 00:00:21]} Qf5 {[%clk 00:01:19]} {[%emt 00:00:01]} 60. Kg2 {[%clk
00:00:58]} {[%emt 00:00:05]} Qc2 {[%clk 00:00:58]} {[%emt 00:00:30]} 61. Rde4
{[%clk 00:00:49]} {[%emt 00:00:19]} Qd1 {[%clk 00:00:47]} {[%emt 00:00:21]} 62.
Re5 {[%clk 00:00:51]} {[%emt 00:00:07]} Qd6 {[%clk 00:00:47]} {[%emt 00:00:09]}
63. Rc5 {[%clk 00:00:49]} {[%emt 00:00:13]} f6 {[%clk 00:00:33]} {[%emt
00:00:24]} 64. Re1 {[%clk 00:00:47]} {[%emt 00:00:12]} Kf7 {[%clk 00:00:19]}
{[%emt 00:00:23]} 65. Kg1 {[%clk 00:00:48]} {[%emt 00:00:09]} Qd7 {[%clk
00:00:20]} {[%emt 00:00:10]} 66. Ra1 {[%clk 00:00:46]} {[%emt 00:00:12]} Kg6
{[%clk 00:00:27]} {[%emt 00:00:04]} 67. Re1 {[%clk 00:00:39]} {[%emt 00:00:16]}
Kf7 {[%clk 00:00:25]} {[%emt 00:00:12]} 68. Re3 {[%clk 00:00:46]} {[%emt
00:00:03]} Kg6 {[%clk 00:00:31]} {[%emt 00:00:04]} 69. Kh2 {[%clk 00:00:26]}
{[%emt 00:00:29]} Qh7+ {[%clk 00:00:40]} {[%emt 00:00:02]} 70. Kg2 {[%clk
00:00:35]} {[%emt 00:00:01]} Qb7+ {[%clk 00:00:48]} {[%emt 00:00:02]} 71. Kg1
{[%clk 00:00:42]} {[%emt 00:00:03]} Qd7 {[%clk 00:00:57]} 72. Re1 {[%clk
00:00:27]} {[%emt 00:00:25]} Kf7 {[%clk 00:01:07]} 73. Kf1 {[%clk 00:00:21]}
{[%emt 00:00:16]} Kg6 {[%clk 00:01:08]} {[%emt 00:00:09]} 74. Kg1 {[%clk
00:00:20]} {[%emt 00:00:12]} Kf7 {[%clk 00:01:16]} {[%emt 00:00:01]} 75. Re3
{[%clk 00:00:21]} {[%emt 00:00:09]} Kg6 {[%clk 00:01:19]} {[%emt 00:00:07]} 76.
Re1 {[%clk 00:00:26]} {[%emt 00:00:04]} Kf7 {[%clk 00:01:28]} {[%emt 00:00:01]}
1/2-1/2

[Event "FIDE U16 Olympiad_boards_1-80"]
[Site "Eindhoven, Netherlands"]
[Date "2023.08.13"]
[Round "1.3"]
[White "Hu, Yifei"]
[Black "Mamedov, Edgar"]
[Result "1/2-1/2"]
[TimeControl "2700+10"]
[WhiteElo "1825"]
[BlackElo "2091"]

1. d4 {[%clk 00:45:19]} {[%emt 00:00:01]} d5 {[%emt 00:00:11]} 2. c4 {[%clk
00:45:25]} e6 {[%clk 00:45:18]} {[%emt 00:00:05]} 3. Nf3 {[%clk 00:45:31]}
{[%emt 00:00:05]} Nf6 {[%clk 00:45:24]} {[%emt 00:00:04]} 4. g3 {[%clk
00:45:36]} {[%emt 00:00:05]} dxc4 {[%clk 00:45:15]} {[%emt 00:00:18]} 5. Bg2
{[%clk 00:45:41]} {[%emt 00:00:05]} Bd7 {[%clk 00:45:19]} {[%emt 00:00:06]} 6.
Qc2 {[%clk 00:45:22]} {[%emt 00:00:29]} Bc6 {[%clk 00:43:54]} {[%emt 00:01:35]}
7. Qxc4 {[%clk 00:44:48]} {[%emt 00:00:43]} Nbd7 {[%clk 00:41:58]} {[%emt
00:02:08]} 8. Nc3 {[%clk 00:43:41]} {[%emt 00:01:17]} Be7 {[%clk 00:40:45]}
{[%emt 00:01:22]} 9. O-O {[%clk 00:41:41]} {[%emt 00:02:10]} O-O {[%clk
00:40:44]} {[%emt 00:00:11]} 10. Bg5 {[%clk 00:41:14]} {[%emt 00:00:36]} Nd5
{[%clk 00:30:36]} {[%emt 00:10:18]} 11. Bxe7 {[%clk 00:39:05]} {[%emt
00:02:19]} Qxe7 {[%clk 00:30:39]} {[%emt 00:00:07]} 12. Rfe1 {[%clk 00:36:07]}
{[%emt 00:03:08]} N5b6 {[%clk 00:26:25]} {[%emt 00:04:24]} 13. Qb3 {[%clk
00:34:58]} {[%emt 00:01:18]} Bxf3 {[%clk 00:22:30]} {[%emt 00:04:06]} 14. Bxf3
{[%clk 00:34:54]} {[%emt 00:00:14]} c6 {[%clk 00:21:47]} {[%emt 00:00:53]} 15.
a3 {[%clk 00:34:06]} {[%emt 00:00:58]} Rfe8 {[%clk 00:18:40]} {[%emt 00:03:17]}
16. e3 {[%clk 00:31:51]} {[%emt 00:02:25]} e5 {[%clk 00:17:42]} {[%emt
00:01:08]} 17. Rad1 {[%clk 00:30:35]} {[%emt 00:01:25]} Qf6 {[%clk 00:15:14]}
{[%emt 00:02:39]} 18. Bg2 {[%clk 00:29:47]} {[%emt 00:00:58]} exd4 {[%clk
00:14:59]} {[%emt 00:00:24]} 19. Ne4 {[%clk 00:29:54]} {[%emt 00:00:03]} Qe7
{[%clk 00:08:22]} {[%emt 00:06:47]} 20. Rxd4 {[%clk 00:29:30]} {[%emt
00:00:34]} Nf8 {[%clk 00:04:04]} {[%emt 00:04:28]} 21. Red1 {[%clk 00:26:27]}
{[%emt 00:03:13]} Ne6 {[%clk 00:03:45]} {[%emt 00:00:29]} 22. R4d3 {[%clk
00:26:14]} {[%emt 00:00:23]} Nd5 {[%clk 00:03:04]} {[%emt 00:00:51]} 23. Qa2
{[%clk 00:25:47]} {[%emt 00:00:37]} a5 {[%clk 00:02:13]} {[%emt 00:01:02]} 24.
Nd2 {[%clk 00:21:51]} {[%emt 00:04:05]} Nc5 {[%clk 00:01:39]} {[%emt 00:00:44]}
25. Rd4 {[%clk 00:21:58]} {[%emt 00:00:03]} Nc7 {[%clk 00:00:25]} {[%emt
00:01:25]} 26. Nb3 {[%clk 00:21:21]} {[%emt 00:00:47]} Qe6 {[%clk 00:00:20]}
{[%emt 00:00:15]} 27. Bd5 {[%clk 00:21:17]} {[%emt 00:00:14]} Nxd5 {[%clk
00:00:24]} {[%emt 00:00:06]} 28. Nxc5 {[%clk 00:21:24]} {[%emt 00:00:02]} Qe7
{[%clk 00:00:29]} {[%emt 00:00:06]} 29. Nd3 {[%clk 00:21:18]} {[%emt 00:00:16]}
a4 {[%clk 00:00:23]} {[%emt 00:00:16]} 30. Nf4 {[%clk 00:20:48]} {[%emt
00:00:40]} Nf6 {[%clk 00:00:32]} {[%emt 00:00:01]} 31. Qc4 {[%clk 00:20:46]}
{[%emt 00:00:11]} Qe5 {[%clk 00:00:22]} {[%emt 00:00:20]} 32. R4d2 {[%clk
00:19:40]} {[%emt 00:01:16]} g6 {[%clk 00:00:28]} {[%emt 00:00:04]} 33. Qd4
{[%clk 00:19:40]} {[%emt 00:00:10]} Qxd4 {[%clk 00:00:32]} {[%emt 00:00:06]} 34.
Rxd4 {[%clk 00:19:49]} {[%emt 00:00:01]} Kg7 {[%clk 00:00:32]} {[%emt
00:00:10]} 35. Rb4 {[%clk 00:19:16]} {[%emt 00:00:43]} Re7 {[%clk 00:00:25]}
{[%emt 00:00:17]} 36. Rc1 {[%clk 00:19:17]} {[%emt 00:00:09]} Ra6 {[%clk
00:00:25]} {[%emt 00:00:11]} 37. Rbc4 {[%clk 00:19:16]} {[%emt 00:00:11]} Ne4
{[%clk 00:00:22]} {[%emt 00:00:13]} 38. Nd3 {[%clk 00:18:40]} {[%emt 00:00:46]}
f5 {[%clk 00:00:18]} {[%emt 00:00:14]} 39. R1c2 {[%clk 00:18:29]} {[%emt
00:00:20]} Rd7 {[%clk 00:00:21]} {[%emt 00:00:08]} 40. Nc5 {[%clk 00:18:18]}
{[%emt 00:00:21]} Nxc5 {[%clk 00:00:28]} {[%emt 00:00:03]} 41. Rxc5 {[%clk
00:18:27]} {[%emt 00:00:01]} Rd3 {[%clk 00:00:30]} {[%emt 00:00:07]} 42. R5c4
{[%clk 00:18:22]} {[%emt 00:00:15]} Kf6 {[%clk 00:00:28]} {[%emt 00:00:12]} 43.
Kf1 {[%clk 00:18:29]} {[%emt 00:00:03]} Rd1+ {[%clk 00:00:27]} {[%emt
00:00:11]} 44. Ke2 {[%clk 00:18:38]} Rd5 {[%clk 00:00:32]} {[%emt 00:00:06]} 45.
h4 {[%clk 00:18:00]} {[%emt 00:00:47]} Ke6 {[%clk 00:00:38]} {[%emt 00:00:04]}
46. f4 {[%clk 00:17:11]} {[%emt 00:00:59]} Kd7 {[%clk 00:00:29]} {[%emt
00:00:19]} 47. e4 {[%clk 00:17:12]} {[%emt 00:00:08]} fxe4 {[%clk 00:00:37]}
{[%emt 00:00:02]} 48. Rxe4 {[%clk 00:17:21]} b5 {[%clk 00:00:28]} {[%emt
00:00:19]} 49. Rd2 {[%clk 00:17:12]} {[%emt 00:00:19]} Rxd2+ {[%clk 00:00:24]}
{[%emt 00:00:14]} 50. Kxd2 {[%clk 00:17:20]} {[%emt 00:00:02]} Ra8 {[%clk
00:00:30]} {[%emt 00:00:05]} 51. Kc3 {[%clk 00:17:19]} {[%emt 00:00:09]} c5
{[%clk 00:00:27]} {[%emt 00:00:13]} 52. Re5 {[%clk 00:17:27]} {[%emt 00:00:02]}
Kd6 {[%clk 00:00:36]} {[%emt 00:00:01]} 53. Kd3 {[%clk 00:17:18]} {[%emt
00:00:19]} Rb8 {[%clk 00:00:31]} {[%emt 00:00:15]} 54. h5 {[%clk 00:16:43]}
{[%emt 00:00:44]} gxh5 {[%clk 00:00:23]} {[%emt 00:00:18]} 55. Rxh5 {[%clk
00:16:51]} {[%emt 00:00:02]} Rg8 {[%clk 00:00:32]} {[%emt 00:00:02]} 56. Rh6+
{[%clk 00:16:55]} {[%emt 00:00:06]} Kd5 {[%clk 00:00:39]} {[%emt 00:00:04]} 57.
Rh5+ {[%clk 00:17:04]} Kd6 {[%clk 00:00:44]} {[%emt 00:00:06]} 58. Rh6+ {[%clk
00:17:10]} {[%emt 00:00:03]} Kd5 {[%clk 00:00:46]} {[%emt 00:00:08]} 59. Rh5+
{[%clk 00:17:13]} {[%emt 00:00:06]} Ke6 {[%clk 00:00:54]} {[%emt 00:00:01]} 60.
Rxc5 {[%clk 00:17:16]} {[%emt 00:00:07]} Rxg3+ {[%clk 00:01:01]} {[%emt
00:00:03]} 61. Kc2 {[%clk 00:17:25]} {[%emt 00:00:01]} Rg2+ {[%clk 00:00:22]}
{[%emt 00:00:49]} 62. Kc3 {[%clk 00:17:32]} {[%emt 00:00:03]} Rg3+ {[%clk
00:00:29]} {[%emt 00:00:04]} 63. Kc2 {[%clk 00:17:40]} {[%emt 00:00:02]} Rg2+
{[%clk 00:00:27]} {[%emt 00:00:11]} 64. Kc3 {[%clk 00:16:32]} {[%emt 00:01:18]}
Rg3+ {[%clk 00:00:23]} {[%emt 00:00:14]} 65. Kc2 {[%clk 00:16:41]} {[%emt
00:00:02]} Rg2+ {[%clk 00:00:25]} {[%emt 00:00:08]} 66. Kc3 {[%clk 00:16:42]}
{[%emt 00:00:09]} Rg3+ {[%clk 00:00:27]} {[%emt 00:00:07]} 1/2-1/2

[Event "FIDE U16 Olympiad_boards_1-80"]
[Site "Eindhoven, Netherlands"]
[Date "2023.08.13"]
[Round "1.4"]
[White "Nurmanova, Alua"]
[Black "Cheng, Chao Xin"]
[Result "1-0"]
[TimeControl "2700+10"]
[WhiteElo "2252"]
[BlackElo "1748"]

1. e4 {[%clk 00:45:10]} {[%emt 00:00:03]} c5 {[%clk 00:45:10]} {[%emt
00:00:02]} 2. Nf3 {[%clk 00:45:02]} {[%emt 00:00:19]} e6 {[%clk 00:45:06]}
{[%emt 00:00:14]} 3. d4 {[%clk 00:45:02]} {[%emt 00:00:09]} cxd4 {[%clk
00:45:06]} {[%emt 00:00:03]} 4. Nxd4 {[%clk 00:45:02]} {[%emt 00:00:04]} Nf6
{[%clk 00:45:06]} {[%emt 00:00:06]} 5. Nc3 {[%clk 00:43:01]} {[%emt 00:02:11]}
Nc6 {[%clk 00:44:58]} {[%emt 00:00:18]} 6. Be2 {[%clk 00:39:49]} {[%emt
00:03:23]} Bb4 {[%clk 00:40:03]} {[%emt 00:05:04]} 7. O-O {[%clk 00:39:49]}
{[%emt 00:00:09]} a6 {[%clk 00:34:59]} {[%emt 00:05:15]} 8. Nxc6 {[%clk
00:38:40]} {[%emt 00:01:19]} bxc6 {[%clk 00:33:35]} {[%emt 00:01:34]} 9. e5
{[%clk 00:38:19]} {[%emt 00:00:31]} Nd5 {[%clk 00:30:26]} {[%emt 00:03:19]} 10.
Ne4 {[%clk 00:37:32]} {[%emt 00:00:57]} Be7 {[%clk 00:23:26]} {[%emt 00:07:10]}
11. c4 {[%clk 00:36:56]} {[%emt 00:00:46]} Nb6 {[%clk 00:20:59]} {[%emt
00:02:37]} 12. Nd6+ {[%clk 00:32:11]} {[%emt 00:04:55]} Bxd6 {[%clk 00:20:11]}
{[%emt 00:00:59]} 13. Qxd6 {[%clk 00:32:11]} {[%emt 00:00:09]} a5 {[%clk
00:15:23]} {[%emt 00:04:58]} 14. Be3 {[%clk 00:31:00]} {[%emt 00:01:20]} Bb7
{[%clk 00:10:23]} {[%emt 00:05:10]} 15. Qd4 {[%clk 00:26:16]} {[%emt 00:04:54]}
Nc8 {[%clk 00:10:00]} {[%emt 00:00:34]} 16. Qg4 {[%clk 00:25:58]} {[%emt
00:00:28]} Ne7 {[%clk 00:04:27]} {[%emt 00:05:42]} 17. Bc5 {[%clk 00:20:38]}
{[%emt 00:05:30]} O-O {[%clk 00:03:52]} {[%emt 00:00:46]} 18. Rfd1 {[%clk
00:20:17]} {[%emt 00:00:31]} Re8 {[%clk 00:03:23]} {[%emt 00:00:39]} 19. Qd4
{[%clk 00:18:56]} {[%emt 00:01:31]} d5 {[%clk 00:02:11]} {[%emt 00:01:23]} 20.
exd6 {[%clk 00:18:51]} {[%emt 00:00:16]} Nf5 {[%clk 00:02:07]} {[%emt
00:00:13]} 21. Qg4 {[%clk 00:17:57]} {[%emt 00:01:04]} Qd7 {[%clk 00:02:06]}
{[%emt 00:00:10]} 22. b3 {[%clk 00:17:16]} {[%emt 00:00:51]} Bc8 {[%clk
00:01:04]} {[%emt 00:01:12]} 23. Qh3 {[%clk 00:16:01]} {[%emt 00:01:25]} Qb7
{[%clk 00:00:25]} {[%emt 00:00:48]} 24. Bd3 {[%clk 00:14:37]} {[%emt 00:01:35]}
Bd7 {[%clk 00:00:16]} {[%emt 00:00:19]} 25. Re1 {[%clk 00:13:09]} {[%emt
00:01:38]} Rad8 {[%clk 00:00:15]} {[%emt 00:00:11]} 26. g4 {[%clk 00:13:09]}
{[%emt 00:00:05]} Nh6 {[%clk 00:00:15]} {[%emt 00:00:04]} 27. Be3 {[%clk
00:13:02]} {[%emt 00:00:16]} f5 {[%clk 00:00:13]} {[%emt 00:00:13]} 28. Bxh6
{[%clk 00:12:42]} {[%emt 00:00:30]} gxh6 {[%clk 00:00:13]} {[%emt 00:00:02]} 29.
Qxh6 {[%clk 00:12:13]} {[%emt 00:00:39]} Bc8 {[%clk 00:00:13]} {[%emt
00:00:07]} 30. c5 {[%clk 00:11:46]} {[%emt 00:00:37]} fxg4 {[%clk 00:00:13]}
{[%emt 00:00:08]} 31. Re5 {[%clk 00:11:11]} {[%emt 00:00:46]} Qf7 {[%clk
00:00:13]} {[%emt 00:00:08]} 32. Bxh7+ {[%clk 00:11:06]} {[%emt 00:00:15]} Qxh7
{[%clk 00:00:13]} {[%emt 00:00:05]} 33. Rg5+ {[%clk 00:11:06]} {[%emt
00:00:02]} Kh8 {[%clk 00:00:13]} {[%emt 00:00:05]} 34. Qf6+ {[%clk 00:11:06]}
{[%emt 00:00:02]} Qg7 {[%clk 00:00:13]} {[%emt 00:00:02]} 35. Qxg7# {[%clk
00:11:06]} {[%emt 00:00:02]} 1-0